fUSD/lending_fUSD_20240118
["ID","MTS","AMOUNT","RATE_DAILY","PERIOD"]
[311996532,1705536646410,-500.0,0.00022092,2]
[311996536,1705536646419,-500.0,0.00022092,2]
[311996538,1705536646429,-500.0,0.00022092,2]
[311996542,1705536646438,-500.0,0.00022092,2]
[311996544,1705536646447,-500.0,0.00022092,2]
[311996546,1705536646456,-500.0,0.00022092,2]
[311996549,1705536646465,-500.0,0.00022092,2]
[311996552,1705536646474,-500.0,0.00022092,2]
[311996554,1705536646483,-500.0,0.00022092,2]
[311996556,1705536646492,-500.0,0.00022092,2]
[311996559,1705536646503,-500.0,0.00022092,2]
[311996561,1705536646512,-648.84,0.00022092,2]
[311996563,1705536646520,-500.0,0.00022092,2]
[311996566,1705536646529,-500.0,0.00022092,2]
[311996569,1705536646539,-500.0,0.00022092,2]
[311996572,1705536646548,-500.0,0.00022092,2]
[311996575,1705536646557,-569.36,0.00022092,2]
[311996578,1705536646566,-500.0,0.00022092,2]
[311996581,1705536646574,-235.06,0.00022092,2]
[311996584,1705536646583,-557.92,0.00022092,2]
[311996586,1705536646592,-1910.6,0.00022092,2]
[311996590,1705536646602,-500.0,0.00022092,2]
[311996593,1705536646611,-500.0,0.00022092,2]
[311996596,1705536646620,-500.0,0.00022092,2]
[311996598,1705536646629,-360.54,0.00022092,2]
[311996601,1705536646639,-500.0,0.00022092,2]
[311996605,1705536646648,-500.0,0.00022092,2]
[311996606,1705536646657,-500.0,0.00022092,2]
[311996609,1705536646666,-500.0,0.00022092,2]
[311996614,1705536646676,-500.0,0.00022092,2]
[311996615,1705536646685,-500.0,0.00022092,2]
[311996618,1705536646694,-500.0,0.00022092,2]
[311996621,1705536646703,-500.0,0.00022092,2]
[311996624,1705536646712,-500.0,0.00022092,2]
[311996627,1705536646721,-500.0,0.00022092,2]
[311996630,1705536646731,-500.0,0.00022092,2]
[311996633,1705536646740,-500.0,0.00022092,2]
[311996636,1705536646749,-500.0,0.00022092,2]
[311996641,1705536646759,-500.0,0.00022092,2]
[311996644,1705536646768,-595.74,0.00022092,2]
[311996646,1705536646777,-934.56,0.00022092,2]
[311996648,1705536646786,-500.0,0.00022092,2]
[311996652,1705536646796,-500.0,0.00022092,2]
[311996656,1705536646806,-500.0,0.00022092,2]
[311996658,1705536646815,-500.0,0.00022092,2]
[311996662,1705536646824,-500.0,0.00022092,2]
[311996665,1705536646834,-500.0,0.00022092,2]
[311996668,1705536646843,-500.0,0.00022092,2]
[311996671,1705536646852,-500.0,0.00022092,2]
[311996674,1705536646860,-320.14060737,0.00022092,2]
[311996677,1705536646869,-500.0,0.00022092,2]
[311996680,1705536646878,-259.25,0.00022092,2]
[311996683,1705536646887,-588.10183598,0.00022092,2]
[311996686,1705536646896,-500.0,0.00022092,2]
[311996689,1705536646905,-500.0,0.00022092,2]
[311996692,1705536646914,-500.0,0.00022092,2]
[311996695,1705536646924,-500.0,0.00022092,2]
[311996698,1705536646933,-500.0,0.00022092,2]
[311996701,1705536646942,-500.0,0.00022092,2]
[311996702,1705536646951,-676.45,0.00022092,2]
[311996706,1705536646961,-500.0,0.00022092,2]
[311996710,1705536646971,-590.17,0.00022092,2]
[311996713,1705536646980,-354.45833948,0.00022092,2]
[311996716,1705536646989,-500.0,0.00022092,2]
[311996717,1705536646998,-500.0,0.00022092,2]
[311996720,1705536647007,-238.21,0.00022092,2]
[311996725,1705536647017,-500.0,0.00022092,2]
[311996728,1705536647027,-500.0,0.00022092,2]
[311996731,1705536647036,-500.0,0.00022092,2]
[311996734,1705536647045,-500.0,0.00022092,2]
[311996737,1705536647054,-500.0,0.00022092,2]
[311996740,1705536647063,-500.0,0.00022092,2]
[311996743,1705536647072,-500.0,0.00022092,2]
[311996746,1705536647082,-500.0,0.00022092,2]
[311996748,1705536647091,-500.0,0.00022092,2]
[311996752,1705536647100,-444.66,0.00022092,2]
[311996754,1705536647110,-1173.73,0.00022092,2]
[311996758,1705536647120,-500.0,0.00022092,2]
[311996759,1705536647129,-548.74929744,0.00022092,2]
[311996764,1705536647139,-500.0,0.00022092,2]
[311996767,1705536647148,-500.0,0.00022092,2]
[311996768,1705536647158,-431.54,0.00022092,2]
[311996773,1705536647167,-215.14,0.00022092,2]
[311996776,1705536647177,-500.0,0.00022092,2]
[311996779,1705536647186,-571.77372095,0.00022092,2]
[311996782,1705536647196,-641.65,0.00022092,2]
[311996785,1705536647206,-500.0,0.00022092,2]
[311996786,1705536647219,-500.0,0.00022092,2]
[311996791,1705536647228,-500.0,0.00022092,2]
[311996794,1705536647237,-528.10555098,0.00022092,2]
[311996795,1705536647246,-500.0,0.00022092,2]
[311996799,1705536647256,-608.77983181,0.00022092,2]
[311996834,1705536647522,-48.24016819,0.00022092,2]
[311996836,1705536647531,-315.57498877,0.00022092,2]
[311996838,1705536647544,-184.42501123,0.00022092,2]
[311996840,1705536647553,-500.0,0.00022092,2]
[311996842,1705536647562,-500.0,0.00022092,2]
[311996844,1705536647571,-500.0,0.00022092,2]
[311996846,1705536647580,-500.0,0.00022092,2]
[311996848,1705536647589,-500.0,0.00022092,2]
[311996850,1705536647598,-500.0,0.00022092,2]
[311996852,1705536647607,-500.0,0.00022092,2]
[311996855,1705536647617,-500.0,0.00022092,2]
[311996857,1705536647626,-500.0,0.00022092,2]
[311996859,1705536647635,-521.3,0.00022092,2]
[311996861,1705536647644,-500.0,0.00022092,2]
[311996863,1705536647653,-500.0,0.00022092,2]
[311996864,1705536647662,-570.91360253,0.00022093,2]
[311996867,1705536647671,-500.0,0.00022093,2]
[311996868,1705536647680,-500.0,0.00022093,2]
[311996870,1705536647690,-500.0,0.00022093,2]
[311996872,1705536647699,-500.0,0.00022093,2]
[311996874,1705536647708,-500.0,0.00022093,2]
[311996876,1705536647717,-537.31812021,0.00022093,2]
[311996878,1705536647727,-252.09709217,0.00022093,2]
[311996880,1705536647736,-500.0,0.00022093,2]
[311996882,1705536647746,-500.0,0.00022093,2]
[311996884,1705536647755,-500.0,0.00022093,2]
[311996886,1705536647764,-463.53,0.00022093,2]
[311996888,1705536647773,-500.0,0.00022093,2]
[311996890,1705536647782,-500.0,0.00022093,2]
[311996893,1705536647793,-500.0,0.00022093,2]
[311996894,1705536647802,-500.0,0.00022093,2]
[311996897,1705536647811,-347.51,0.00022093,2]
[311996899,1705536647820,-500.0,0.00022093,2]
[311996901,1705536647829,-500.0,0.00022093,2]
[311996903,1705536647838,-500.0,0.00022093,2]
[311996905,1705536647847,-625.97,0.00022093,2]
[311996906,1705536647856,-500.0,0.00022093,2]
[311996908,1705536647866,-500.0,0.00022093,2]
[311996910,1705536647875,-500.0,0.00022093,2]
[311996912,1705536647884,-500.0,0.00022093,2]
[311996914,1705536647893,-500.0,0.00022093,2]
[311996917,1705536647903,-500.0,0.00022093,2]
[311996919,1705536647913,-500.0,0.00022093,2]
[311996921,1705536647922,-500.0,0.00022093,2]
[311996923,1705536647931,-500.0,0.00022093,2]
[311996925,1705536647940,-500.0,0.00022093,2]
[311996927,1705536647950,-500.0,0.00022093,2]
[311996929,1705536647959,-500.0,0.00022093,2]
[311996930,1705536647969,-576.5,0.00022093,2]
[311996933,1705536647978,-500.0,0.00022093,2]
[311996935,1705536647989,-500.0,0.00022093,2]
[311996937,1705536647998,-500.0,0.00022093,2]
[311996939,1705536648007,-500.0,0.00022093,2]
[311996941,1705536648016,-623.93,0.00022093,2]
[311996943,1705536648026,-500.0,0.00022093,2]
[311996945,1705536648035,-500.0,0.00022093,2]
[311996947,1705536648044,-500.0,0.00022093,2]
[311996949,1705536648052,-517.64908068,0.00022093,2]
[311996951,1705536648061,-500.0,0.00022093,2]
[311996953,1705536648070,-500.0,0.00022093,2]
[311996955,1705536648080,-500.0,0.00022093,2]
[311996956,1705536648089,-500.0,0.00022093,2]
[311996959,1705536648098,-500.0,0.00022093,2]
[311996961,1705536648107,-500.0,0.00022093,2]
[311996963,1705536648117,-500.0,0.00022093,2]
[311996965,1705536648125,-500.0,0.00022093,2]
[311996967,1705536648135,-500.0,0.00022093,2]
[311996969,1705536648144,-500.0,0.00022093,2]
[311996971,1705536648154,-500.0,0.00022093,2]
[311996973,1705536648163,-527.81941322,0.00022093,2]
[311996975,1705536648172,-500.0,0.00022093,2]
[311996977,1705536648181,-500.0,0.00022093,2]
[311996979,1705536648192,-500.0,0.00022093,2]
[311996981,1705536648201,-300.0,0.00022093,2]
[311996983,1705536648214,-500.0,0.00022093,2]
[311996995,1705536648398,-500.0,0.00022093,2]
[311996996,1705536648407,-500.0,0.00022093,2]
[311996997,1705536648417,-500.0,0.00022093,2]
[311996998,1705536648426,-500.0,0.00022093,2]
[311996999,1705536648435,-500.0,0.00022093,2]
[311997000,1705536648445,-500.0,0.00022093,2]
[311997001,1705536648455,-500.0,0.00022093,2]
[311997002,1705536648465,-500.0,0.00022093,2]
[311997003,1705536648475,-500.0,0.00022093,2]
[311997004,1705536648485,-256.6,0.00022093,2]
[311997005,1705536648495,-500.0,0.00022093,2]
[311997006,1705536648505,-322.21206249,0.00022093,2]
[311997008,1705536648514,-500.0,0.00022093,2]
[311997010,1705536648524,-523.79,0.00022093,2]
[311997011,1705536648533,-500.0,0.00022093,2]
[311997012,1705536648542,-500.0,0.00022093,2]
[311997013,1705536648551,-239.87,0.00022093,2]
[311997014,1705536648560,-551.3034812,0.00022093,2]
[311997015,1705536648570,-500.0,0.00022093,2]
[311997016,1705536648579,-500.0,0.00022093,2]
[311997017,1705536648589,-500.0,0.00022093,2]
[311997018,1705536648598,-500.0,0.00022093,2]
[311997019,1705536648608,-500.0,0.00022093,2]
[311997020,1705536648617,-500.0,0.00022093,2]
[311997021,1705536648626,-500.0,0.00022093,2]
[311997022,1705536648635,-500.0,0.00022093,2]
[311997023,1705536648644,-500.0,0.00022093,2]
[311997024,1705536648653,-500.0,0.00022093,2]
[311997025,1705536648663,-516.40718741,0.00022093,2]
[311997026,1705536648672,-500.0,0.00022093,2]
[311997027,1705536648681,-500.0,0.00022093,2]
[311997028,1705536648690,-500.0,0.00022093,2]
[311997029,1705536648699,-500.0,0.00022093,2]
[311997030,1705536648709,-500.0,0.00022093,2]
[311997031,1705536648719,-500.0,0.00022093,2]
[311997032,1705536648727,-500.0,0.00022093,2]
[311997033,1705536648737,-500.0,0.00022093,2]
[311997034,1705536648746,-500.0,0.00022093,2]
[311997035,1705536648755,-500.0,0.00022093,2]
[311997036,1705536648764,-500.0,0.00022093,2]
[311997037,1705536648773,-500.0,0.00022093,2]
[311997038,1705536648782,-500.0,0.00022093,2]
[311997039,1705536648791,-500.0,0.00022093,2]
[311997040,1705536648801,-500.0,0.00022093,2]
[311997042,1705536648810,-500.0,0.00022093,2]
[311997043,1705536648819,-500.0,0.00022093,2]
[311997044,1705536648828,-500.0,0.00022093,2]
[311997045,1705536648838,-500.0,0.00022093,2]
[311997046,1705536648847,-500.0,0.00022093,2]
[311997047,1705536648857,-500.0,0.00022093,2]
[311997048,1705536648866,-500.0,0.00022093,2]
[311997049,1705536648876,-500.0,0.00022093,2]
[311997050,1705536648885,-161.44,0.00022093,2]
[311997051,1705536648894,-155.03,0.00022185,2]
[311997052,1705536648903,-1121.78,0.00022255,2]
[311997053,1705536648912,-780.06170865,0.00022257,2]
[311997054,1705536648926,-918.47829135,0.00022257,2]
[311997055,1705536648936,-153.31,0.00022258,2]
[311997056,1705536648945,-1687.99,0.00022259,2]
[311997057,1705536648955,-282.83442696,0.00022261,2]
[311997058,1705536648967,-1405.15557304,0.00022261,2]
[311997059,1705536648976,-1687.99,0.00022262,2]
[311997060,1705536648986,-596.28046388,0.00022266,2]
[311997061,1705536648995,-603.44330913,0.00022267,2]
[311997062,1705536649007,-1084.54669087,0.00022267,2]
[311997063,1705536649016,-1687.99,0.00022269,2]
[311997064,1705536649025,-1022.48042663,0.00022274,2]
[311997065,1705536649363,-398.45291272,0.00022092,5]
[311997066,1705536649374,-101.54708728,0.00022092,5]
[311997067,1705536649384,-460.58266192,0.00022274,2]
[311997068,1705536649411,-204.92691145,0.00022274,2]
[311997069,1705536649420,-1688.0,0.00022275,2]
[311997070,1705536649430,-645.30780488,0.00022276,2]
[311997076,1705537132404,151.0,0.00029985,120]
[311997081,1705537532303,151.0,0.00029948,120]
[311997086,1705537745099,-523.73846155,0.00018704,2]
[311997087,1705537745120,-75.23976102,0.00018705,2]
[311997104,1705537832200,-155.0,0.00018705,2]
[311997105,1705537832210,-295.0,0.00018737,2]
[311997106,1705537832222,-313.82,0.00018737,2]
[311997107,1705537832232,-5442.70539136,0.00019999,2]
[311997108,1705537832242,-155.0,0.0002,2]
[311997109,1705537832252,-155.0,0.0002024,2]
[311997110,1705537832261,-150.0,0.00020253,2]
[311997111,1705537832271,-150.0,0.00020253,2]
[311997112,1705537832281,-732.13,0.00020254,2]
[311997113,1705537832291,-727.84,0.00020254,2]
[311997114,1705537832301,-718.14,0.00020254,2]
[311997115,1705537832311,-499.99,0.00020406,2]
[311997116,1705537832321,-2159.46,0.00020406,2]
[311997117,1705537832330,-1369.16,0.00020406,2]
[311997118,1705537832339,-1627.23,0.00020416,2]
[311997119,1705537832349,-164.39,0.00020487,2]
[311997120,1705537832359,-159.79,0.00020512,2]
[311997121,1705537832368,-2000.0,0.00020599,2]
[311997122,1705537832377,-578.92,0.00020601,2]
[311997123,1705537832387,-164.61,0.00020613,2]
[311997124,1705537832397,-1143.1,0.00020615,2]
[311997125,1705537832406,-162.18,0.00020781,2]
[311997126,1705537832416,-667.75,0.0002082,2]
[311997127,1705537832426,-157.87,0.00020829,2]
[311997128,1705537832436,-154.04,0.00020846,2]
[311997129,1705537832445,-159.79,0.00020854,2]
[311997130,1705537832455,-421.08,0.00020898,2]
[311997131,1705537832466,-250.0,0.000209,2]
[311997132,1705537832475,-154.04,0.00020909,2]
[311997133,1705537832484,-3602.2248702,0.00020951,2]
[311997134,1705537832514,-380.49190557,0.00020951,2]
[311997137,1705537832556,-1535.01322423,0.00020951,2]
[311997139,1705537832569,-154.04,0.00020973,2]
[311997141,1705537832579,-608.82,0.00021001,2]
[311997143,1705537832589,-72.40078283,0.00021037,2]
[311997145,1705537832601,-81.63921717,0.00021037,2]
[311997146,1705537832611,-154.04,0.00021101,2]
[311997147,1705537832620,-154.04,0.00021165,2]
[311997148,1705537832630,-159.79,0.00021196,2]
[311997150,1705537832640,-96.59253261,0.00021229,2]
[311997154,1705537832667,-57.44746739,0.00021229,2]
[311997156,1705537832677,-154.04,0.00021293,2]
[311997158,1705537832686,-164.61,0.000213,2]
[311997160,1705537832696,-154.04,0.00021357,2]
[311997162,1705537832706,-188.32015503,0.000214,3]
[311997164,1705537832716,-250.0,0.000214,2]
[311997166,1705537832726,-154.04,0.00021421,2]
[311997168,1705537832736,-154.04,0.00021484,2]
[311997170,1705537832746,-428.28245121,0.00021503,2]
[311997171,1705537832755,-159.79,0.00021538,2]
[311997172,1705537832765,-154.04,0.00021548,2]
[311997173,1705537832774,-1143.1,0.00021594,2]
[311997174,1705537832784,-154.04,0.00021612,2]
[311997175,1705537832794,-533.74462837,0.00021616,2]
[311997176,1705537832824,-843.71710098,0.00021616,2]
[311997242,1705537839204,-234.14,0.00020634,2]
[311997243,1705537839213,-181.62020718,0.00020718,2]
[311997244,1705537839225,-22.37979282,0.00020718,2]
[311997245,1705537839235,-4407.52192842,0.00021616,2]
[311997246,1705537839244,-154.04,0.00021676,2]
[311997247,1705537839253,-419.33476208,0.00021732,2]
[311997248,1705537839262,-154.04,0.0002174,2]
[311997249,1705537839272,-19126.13858845,0.000218,2]
[311997250,1705537839281,-154.04,0.00021804,2]
[311997251,1705537839290,-154.04,0.00021868,2]
[311997252,1705537839299,-159.79,0.0002188,2]
[311997253,1705537839308,-250.0,0.000219,2]
[311997254,1705537839317,-250.0,0.00021918,2]
[311997255,1705537839327,-154.04,0.00021932,2]
[311997256,1705537839336,-164.61,0.00021987,2]
[311997257,1705537839346,-2088.5668,0.0002199,2]
[311997258,1705537839355,-1747.8624,0.00021991,2]
[311997259,1705537839364,-5000.0,0.00021992,2]
[311997260,1705537839373,-450.0,0.00022,3]
[311997261,1705537839383,-176.27,0.00022,2]
[311997262,1705537839392,-256.83,0.00022,2]
[311997263,1705537839402,-940.89605154,0.00022,2]
[311997264,1705537839411,-5482.68027568,0.0002209,2]
[311997265,1705537839420,-500.0,0.0002209,2]
[311997266,1705537839430,-458.66273702,0.0002209,2]
[311997267,1705537839442,-41.33726298,0.0002209,2]
[311997268,1705537839451,-500.0,0.0002209,2]
[311997269,1705537839460,-8.79525057,0.0002209,2]
[311997270,1705537839481,-618.22474943,0.0002209,2]
[311997271,1705537839490,-552.91,0.0002209,2]
[311997272,1705537839498,-355.64499651,0.0002209,2]
[311997273,1705537839507,-207.71,0.0002209,2]
[311997274,1705537839517,-500.0,0.0002209,2]
[311997275,1705537839526,-500.0,0.0002209,2]
[311997276,1705537839535,-500.0,0.0002209,2]
[311997277,1705537839544,-161.32,0.0002209,2]
[311997278,1705537839553,-500.0,0.0002209,2]
[311997279,1705537839565,-328.98,0.0002209,2]
[311997280,1705537839574,-500.0,0.0002209,2]
[311997281,1705537839584,-500.0,0.0002209,2]
[311997282,1705537839593,-500.0,0.0002209,2]
[311997284,1705537839602,-500.0,0.0002209,2]
[311997286,1705537839612,-500.0,0.0002209,2]
[311997288,1705537839621,-500.0,0.0002209,2]
[311997290,1705537839630,-500.0,0.0002209,2]
[311997292,1705537839639,-500.0,0.00022091,2]
[311997293,1705537839649,-13293.30882533,0.00022092,2]
[311997295,1705537839659,-500.4,0.00022092,2]
[311997298,1705537839668,-500.0,0.00022092,2]
[311997299,1705537839677,-500.0,0.00022092,2]
[311997301,1705537839686,-500.0,0.00022092,2]
[311997303,1705537839695,-800.0,0.00022098,2]
[311997305,1705537839705,-256.83,0.00022137,2]
[311997307,1705537839714,-500.0,0.00022161,2]
[311997310,1705537839724,-21814.0,0.00022185,2]
[311997311,1705537839734,-200.0,0.00022198,2]
[311997314,1705537839743,-159.79,0.00022222,2]
[311997315,1705537839752,-168.74233354,0.00022263,2]
[311997318,1705537839761,-1002.2449,0.00022264,2]
[311997319,1705537839770,-587.6711,0.00022265,2]
[311997321,1705537839780,-150.1,0.00022274,3]
[311997323,1705537839789,-486.07205303,0.00022274,2]
[311997325,1705537839798,-3029.77532042,0.00022276,2]
[311997328,1705537839807,-2000.0,0.00022276,2]
[311997330,1705537839816,-200.0,0.00022276,2]
[311997332,1705537839826,-1852.8340926,0.00022276,2]
[311997334,1705537839835,-595.47775828,0.00022276,2]
[311997336,1705537839844,-1042.8,0.00022277,2]
[311997337,1705537839853,-210.0,0.00022278,2]
[311997340,1705537839862,-210.0,0.00022278,2]
[311997342,1705537839871,-1688.0,0.00022285,2]
[311997343,1705537839880,-1687.97,0.00022288,2]
[311997345,1705537839889,-842.59036762,0.00022293,2]
[311997348,1705537839901,-845.40963238,0.00022293,2]
[311997350,1705537839910,-1687.99,0.00022293,2]
[311997352,1705537839919,-200.0,0.00022298,2]
[311997354,1705537839928,-200.0,0.00022307,2]
[311997356,1705537839937,-200.0,0.00022307,2]
[311997358,1705537839946,-414.27,0.00022329,2]
[311997360,1705537839955,-165.81,0.0002235,2]
[311997362,1705537839965,-500.0,0.00022361,2]
[311997364,1705537839974,-389.82,0.00022361,2]
[311997366,1705537839983,-213.71,0.00022361,2]
[311997368,1705537839992,-214.70943241,0.00022361,2]
[311997370,1705537840001,-500.0,0.00022361,2]
[311997372,1705537840009,-500.0,0.00022361,2]
[311997374,1705537840018,-500.0,0.00022361,2]
[311997376,1705537840027,-500.0,0.00022361,2]
[311997378,1705537840036,-500.0,0.00022361,2]
[311997380,1705537840044,-500.0,0.00022361,2]
[311997382,1705537840053,-500.0,0.00022361,2]
[311997384,1705537840061,-500.0,0.00022361,2]
[311997386,1705537840070,-500.0,0.00022361,2]
[311997388,1705537840079,-500.0,0.00022361,2]
[311997390,1705537840088,-449.09,0.00022361,2]
[311997392,1705537840098,-610.48,0.00022361,2]
[311997393,1705537840107,-500.0,0.00022361,2]
[311997395,1705537840116,-500.0,0.00022361,2]
[311997398,1705537840126,-500.0,0.00022361,2]
[311997400,1705537840135,-500.0,0.00022361,2]
[311997402,1705537840144,-500.0,0.00022361,2]
[311997404,1705537840154,-500.0,0.00022361,2]
[311997406,1705537840163,-500.0,0.00022361,2]
[311997408,1705537840172,-500.0,0.00022361,2]
[311997410,1705537840181,-500.0,0.00022361,2]
[311997412,1705537840189,-500.0,0.00022361,2]
[311997414,1705537840198,-498.07,0.00022361,2]
[311997416,1705537840207,-500.0,0.00022361,2]
[311997418,1705537840216,-3527.91,0.00022361,2]
[311997420,1705537840226,-500.0,0.00022361,2]
[311997422,1705537840235,-500.0,0.00022361,2]
[311997424,1705537840244,-500.0,0.00022361,2]
[311997426,1705537840253,-500.0,0.00022361,2]
[311997428,1705537840262,-500.0,0.00022361,2]
[311997430,1705537840271,-614.82,0.00022361,2]
[311997432,1705537840280,-500.0,0.00022361,2]
[311997459,1705537840511,-500.0,0.00022361,2]
[311997461,1705537840521,-500.0,0.00022361,2]
[311997463,1705537840530,-500.0,0.00022361,2]
[311997465,1705537840539,-449.95,0.00022361,2]
[311997467,1705537840548,-648.84,0.00022361,2]
[311997469,1705537840558,-500.0,0.00022361,2]
[311997471,1705537840570,-2808.37,0.00022361,2]
[311997473,1705537840579,-500.0,0.00022361,2]
[311997476,1705537840588,-500.0,0.00022361,2]
[311997478,1705537840597,-368.54133334,0.00022361,2]
[311997480,1705537840609,-131.45866666,0.00022361,2]
[311997482,1705537840619,-500.0,0.00022361,2]
[311997484,1705537840628,-500.0,0.00022361,2]
[311997486,1705537840638,-500.0,0.00022361,2]
[311997488,1705537840647,-1004.45,0.00022361,2]
[311997490,1705537840656,-500.0,0.00022361,2]
[311997493,1705537840665,-878.88,0.00022361,2]
[311997496,1705537840674,-934.56,0.00022361,2]
[311997499,1705537840683,-500.0,0.00022361,2]
[311997502,1705537840692,-500.0,0.00022361,2]
[311997504,1705537840701,-500.0,0.00022361,2]
[311997506,1705537840711,-500.0,0.00022361,2]
[311997509,1705537840721,-500.0,0.00022361,2]
[311997511,1705537840730,-500.0,0.00022361,2]
[311997513,1705537840738,-500.0,0.00022361,2]
[311997514,1705537840748,-500.0,0.00022361,2]
[311997516,1705537840757,-4767.07,0.00022361,2]
[311997517,1705537840770,-500.0,0.00022361,2]
[311997518,1705537840779,-259.25,0.00022361,2]
[311997519,1705537840788,-500.0,0.00022361,2]
[311997520,1705537840798,-500.0,0.00022361,2]
[311997521,1705537840807,-500.0,0.00022361,2]
[311997522,1705537840815,-500.0,0.00022361,2]
[311997523,1705537840824,-500.0,0.00022361,2]
[311997525,1705537840833,-643.75,0.00022361,2]
[311997527,1705537840842,-500.0,0.00022361,2]
[311997529,1705537840850,-500.0,0.00022361,2]
[311997531,1705537840860,-500.0,0.00022361,2]
[311997533,1705537840869,-500.0,0.00022361,2]
[311997535,1705537840877,-500.0,0.00022361,2]
[311997537,1705537840886,-836.7,0.00022361,2]
[311997539,1705537840895,-500.0,0.00022361,2]
[311997541,1705537840904,-500.0,0.00022361,2]
[311997543,1705537840913,-500.0,0.00022361,2]
[311997545,1705537840922,-500.0,0.00022361,2]
[311997547,1705537840931,-500.0,0.00022361,2]
[311997549,1705537840940,-500.0,0.00022361,2]
[311997551,1705537840950,-500.0,0.00022361,2]
[311997553,1705537840959,-500.0,0.00022361,2]
[311997555,1705537840968,-500.0,0.00022361,2]
[311997557,1705537840978,-675.92,0.00022361,2]
[311997559,1705537840988,-215.14,0.00022361,2]
[311997561,1705537840997,-1577.17,0.00022361,5]
[311997563,1705537841006,-655.01,0.00022361,2]
[311997565,1705537841015,-1978.75,0.00022361,2]
[311997567,1705537841024,-500.0,0.00022361,2]
[311997569,1705537841033,-500.0,0.00022361,2]
[311997571,1705537841042,-500.0,0.00022361,2]
[311997573,1705537841052,-500.0,0.00022361,2]
[311997575,1705537841061,-500.0,0.00022361,2]
[311997577,1705537841070,-500.0,0.00022361,2]
[311997579,1705537841079,-429.13445645,0.00022361,2]
[311997582,1705537841091,-2346.71554355,0.00022361,2]
[311997584,1705537841100,-339.8412265,0.00022361,5]
[311997586,1705537841111,-160.1587735,0.00022361,5]
[311997588,1705537841120,-500.0,0.00022361,2]
[311997590,1705537841129,-38.5262265,0.00022361,2]
[311997592,1705537841141,-461.4737735,0.00022361,2]
[311997594,1705537841150,-500.0,0.00022361,2]
[311997596,1705537841159,-8.82869602,0.00022361,2]
[311997598,1705537841170,-2065.26775631,0.00022361,2]
[311997601,1705537841187,-172.30354767,0.00022361,2]
[311997603,1705537841196,-720.72,0.00022361,2]
[311997605,1705537841206,-500.0,0.00022361,2]
[311997607,1705537841215,-93.00355033,0.00022361,2]
[311997610,1705537841228,-406.99644967,0.00022361,2]
[311997612,1705537841237,-500.0,0.00022361,2]
[311997613,1705537841246,-500.0,0.00022361,2]
[311997615,1705537841256,-151.8149052,0.00022361,2]
[311997618,1705537841267,-385.0150948,0.00022361,2]
[311997620,1705537841276,-306.19452378,0.00022361,2]
[311997622,1705537841288,-537.87547622,0.00022361,2]
[311997624,1705537841296,-500.0,0.00022361,2]
[311997626,1705537841306,-500.0,0.00022361,2]
[311997628,1705537841315,-500.0,0.00022361,2]